bitfinex-derivatives/quotes_BTCF0:USTF0_20220103
["timestamp","ask_amount","ask_price","bid_price","bid_amount"]
[1641181601013,0.09100458,46750.0,46746.0,0.14033567]
[1641181601613,0.09100458,46750.0,46746.0,0.32033567]
[1641181604023,0.09100458,46750.0,46746.0,0.68374312]
[1641181604915,0.09100458,46750.0,46746.0,0.50374312]
[1641181605318,0.09100458,46751.0,46746.0,0.50374312]
[1641181605716,0.09100458,46751.0,46746.0,0.69874312]
[1641181606117,1.48121049,46751.0,46746.0,0.33533567]
[1641181606818,0.0213927,46762.0,46750.0,0.18]
[1641181607018,0.14033567,46766.0,46753.0,0.02138868]
[1641181607219,1.8462,46769.0,46753.0,0.20138868]
[1641181607419,1.8462,46769.0,46758.0,0.18495952]
[1641181607620,0.02138868,46770.0,46759.0,0.18]
[1641181607818,0.02138868,46770.0,46759.0,0.500451]
[1641181608020,0.02138868,46770.0,46766.0,0.14033567]
[1641181609623,0.02138868,46770.0,46766.0,0.32833567]
[1641181611023,0.02138868,46770.0,46766.0,0.14033567]
[1641181611826,0.02138868,46770.0,46766.0,0.32733567]
[1641181612025,0.02138868,46770.0,46769.0,0.14033567]
[1641181612225,0.02238868,46770.0,46769.0,0.20288567]
[1641181613727,0.0946667,46768.0,46766.0,0.14033567]
[1641181615729,0.0946667,46768.0,46766.0,0.33033567]
[1641181616532,0.0946667,46768.0,46766.0,0.53171823]
[1641181616933,0.0946667,46768.0,46766.0,0.32033567]
[1641181617132,1.79771204,46781.0,46766.0,0.32033567]
[1641181617732,1.39569251,46768.0,46766.0,0.50633567]
[1641181618333,1.39569251,46768.0,46767.0,0.28198267]
[1641181618534,1.39569251,46768.0,46767.0,0.60084567]
[1641181619638,1.9594196,46785.0,46772.0,0.22400076]
[1641181619835,1.9594196,46785.0,46772.0,0.31107076]
[1641181620036,0.18,46784.0,46779.0,0.14033567]
[1641181620535,0.20138293,46784.0,46779.0,0.14033567]
[1641181620936,0.20138293,46784.0,46771.0,0.009794]
[1641181620937,0.18,46781.0,46771.0,0.009794]
[1641181621137,0.02138479,46780.0,46771.0,0.009794]
[1641181621737,0.02138479,46780.0,46771.0,0.198794]
[1641181622139,0.18,46779.0,46775.0,0.14033567]
[1641181622837,0.09097261,46778.0,46775.0,0.14033567]
[1641181623442,0.20138681,46776.0,46771.0,0.189]
[1641181623738,0.18,46774.0,46771.0,0.189]
[1641181623951,0.24366,46774.0,46771.0,0.189]
[1641181624754,0.09097261,46773.0,46771.0,0.189]
[1641181625051,0.09097261,46773.0,46767.0,0.191]
[1641181625052,0.09097261,46773.0,46765.0,1.9915]
[1641181625257,0.09097261,46773.0,46760.0,0.32579889]
[1641181625757,0.09097261,46773.0,46769.0,0.154]
[1641181626160,0.27097261,46773.0,46769.0,0.154]
[1641181626958,0.27097261,46773.0,46760.0,0.32579889]
[1641181627560,0.09097261,46772.0,46760.0,0.32579889]
[1641181627760,0.09097261,46772.0,46760.0,0.51679889]
[1641181628358,0.34829676,46766.0,46760.0,0.51679889]
[1641181629159,0.34829676,46766.0,46760.0,0.32579889]
[1641181629560,0.34829676,46766.0,46760.0,0.14033567]
[1641181629860,0.34829676,46766.0,46760.0,0.33633567]
[1641181630462,0.02139211,46764.0,46760.0,0.33633567]
[1641181630760,0.11182211,46764.0,46760.0,0.33633567]
[1641181630961,0.11182211,46764.0,46760.0,0.14033567]
[1641181631161,0.34829676,46761.0,46760.0,0.14033567]
[1641181631760,0.34829676,46761.0,46760.0,0.31633567]
[1641181631961,0.83408455,46764.0,46760.0,0.31633567]
[1641181632161,0.81269244,46763.0,46760.0,0.31633567]
[1641181632962,0.81269244,46763.0,46760.0,0.14033567]
[1641181633563,0.09099852,46762.0,46760.0,0.14033567]
[1641181633762,0.09099852,46762.0,46760.0,0.33133567]
[1641181634164,0.81269244,46763.0,46760.0,0.33133567]
[1641181634565,0.34838933,46764.0,46760.0,0.33133567]
[1641181634965,0.34838933,46764.0,46760.0,0.14033567]
[1641181635565,0.34838933,46763.0,46760.0,0.14033567]
[1641181635764,0.34838933,46763.0,46760.0,0.32733567]
[1641181637169,0.34838933,46763.0,46760.0,0.14033567]
[1641181637772,0.34838933,46763.0,46760.0,0.32733567]
[1641181639071,0.34838933,46763.0,46760.0,0.14033567]
[1641181639673,0.34838933,46763.0,46760.0,0.32733567]
[1641181641075,0.34838933,46763.0,46760.0,0.14033567]
[1641181641675,0.34838933,46763.0,46760.0,0.32733567]
[1641181642476,0.81269244,46766.0,46760.0,0.32733567]
[1641181642878,0.81269244,46762.0,46760.0,0.32733567]
[1641181643075,0.81269244,46762.0,46761.0,0.319824]
[1641181643778,0.81269244,46762.0,46761.0,0.187]
[1641181644677,0.81269244,46762.0,46761.0,0.506177]
[1641181644877,0.81269244,46762.0,46761.0,0.319177]
[1641181645277,0.09099152,46767.0,46761.0,0.52056214]
[1641181645480,0.02599152,46767.0,46762.0,0.8]
[1641181645681,1.39238004,46772.0,46766.0,0.18]
[1641181645878,1.39238004,46768.0,46763.0,0.320306]
[1641181646077,1.39238004,46768.0,46762.0,0.08231]
[1641181646679,1.39238004,46768.0,46763.0,0.18]
[1641181646878,1.39238004,46768.0,46763.0,0.499063]
[1641181647279,0.14033567,46769.0,46763.0,0.499063]
[1641181647679,0.14033567,46769.0,46763.0,0.688063]
[1641181648179,0.14033567,46769.0,46763.0,0.508063]
[1641181648382,0.14033567,46769.0,46767.0,0.18]
[1641181648579,0.14033567,46769.0,46766.0,0.02138271]
[1641181648781,0.14033567,46769.0,46768.0,0.318185]
[1641181649180,0.14033567,46769.0,46766.0,0.02138271]
[1641181649680,0.14033567,46769.0,46766.0,0.21038271]
[1641181649881,0.14033567,46769.0,46767.0,0.322031]
[1641181650682,1.53271571,46775.0,46768.0,0.009794]
[1641181650882,1.39238004,46775.0,46774.0,0.32594211]
[1641181651284,1.39238004,46775.0,46774.0,0.32700011]
[1641181651682,1.39238004,46775.0,46774.0,0.51600011]
[1641181652085,1.39238004,46778.0,46774.0,0.51600011]
[1641181652483,1.34638004,46778.0,46776.0,0.14033567]
[1641181652783,0.02138271,46784.0,46777.0,0.322575]
[1641181653185,0.14033567,46787.0,46777.0,0.322575]
[1641181653785,0.14033567,46787.0,46777.0,0.500575]
[1641181654885,0.14033567,46787.0,46779.0,0.42754043]
[1641181655688,0.14033567,46787.0,46779.0,0.60454043]
[1641181655885,0.14033567,46787.0,46780.0,0.009794]
[1641181656285,0.14033567,46787.0,46780.0,0.328578]
[1641181656888,0.14033567,46787.0,46781.0,0.42752205]
[1641181657789,0.14033567,46787.0,46781.0,0.61552205]
[1641181658589,1.40241727,46782.0,46781.0,0.61552205]
[1641181658991,1.40241727,46782.0,46781.0,0.42752205]
[1641181659690,1.40241727,46782.0,46781.0,0.19]
[1641181660991,1.40241727,46782.0,46778.0,0.42755092]
[1641181661694,1.40241727,46782.0,46778.0,0.61655092]
[1641181662093,1.40241727,46782.0,46779.0,0.74861441]
[1641181663696,1.40241727,46782.0,46779.0,0.93661441]
[1641181664997,1.40241727,46782.0,46779.0,0.74861441]
[1641181665703,1.40241727,46782.0,46779.0,0.93661441]
[1641181665903,1.40241727,46782.0,46779.0,0.61553741]
[1641181667201,1.40241727,46782.0,46779.0,0.42753741]
[1641181667802,1.40241727,46782.0,46779.0,0.61553741]
[1641181668405,1.40241727,46782.0,46779.0,0.61553712]
[1641181668804,0.09096349,46786.0,46779.0,0.61553712]
[1641181669205,0.09096349,46786.0,46779.0,0.42753712]
[1641181669811,0.09096349,46786.0,46779.0,0.61453712]
[1641181671208,0.09096349,46786.0,46779.0,0.42753712]
[1641181671808,0.09096349,46786.0,46779.0,0.61453712]
[1641181673020,0.09096349,46786.0,46779.0,0.42753712]
[1641181673816,0.09096349,46786.0,46779.0,0.61453712]
[1641181674819,0.001,46781.0,46779.0,0.187]
[1641181675023,0.181,46780.0,46776.0,0.14033567]
[1641181675224,0.18,46780.0,46776.0,0.14033567]
[1641181675425,0.27096349,46780.0,46776.0,0.14033567]
[1641181675619,0.09096349,46780.0,46776.0,0.14033567]
[1641181675921,0.09096349,46780.0,46776.0,0.29933567]
[1641181676222,0.18,46779.0,46776.0,0.29933567]
[1641181677022,0.18,46779.0,46776.0,0.14033567]
[1641181677822,0.09096349,46778.0,46776.0,0.30733567]
[1641181679022,0.09096349,46778.0,46776.0,0.14033567]
[1641181679823,0.09096349,46778.0,46771.0,0.14033567]
[1641181680728,0.23129916,46778.0,46771.0,0.14033567]
[1641181681333,0.8159508,46772.0,46771.0,0.14033567]
[1641181681726,0.8159508,46772.0,46771.0,0.19333567]
[1641181683227,0.8159508,46772.0,46771.0,0.14033567]
[1641181683726,0.9919508,46772.0,46771.0,0.30333567]
[1641181685129,0.90691429,46772.0,46771.0,0.14033567]
[1641181685726,1.08291429,46772.0,46771.0,0.30233567]
[1641181686631,0.176,46772.0,46771.0,0.30233567]
[1641181687029,0.8159508,46773.0,46771.0,0.14033567]
[1641181687228,0.09096349,46772.0,46771.0,0.14033567]
[1641181687829,0.26596349,46772.0,46771.0,0.29633567]
[1641181688030,0.26596349,46772.0,46771.0,0.61916667]
[1641181688328,0.175,46772.0,46771.0,0.61916667]
[1641181688928,0.175,46772.0,46771.0,0.29633567]
[1641181689132,0.09096349,46777.0,46771.0,0.14033567]
[1641181689631,0.09096349,46772.0,46771.0,0.14033567]
[1641181690232,0.28796349,46777.0,46771.0,0.14033567]
[1641181690932,0.09096349,46776.0,46771.0,0.14033567]
[1641181691934,0.26496349,46776.0,46771.0,0.18533567]
[1641181692134,0.174,46776.0,46771.0,0.18533567]
[1641181693035,0.09096349,46775.0,46771.0,0.14033567]
[1641181693735,0.09096349,46776.0,46771.0,0.24033567]
[1641181694035,0.177,46775.0,46771.0,0.24033567]
[1641181695139,0.09096349,46776.0,46771.0,0.14033567]
[1641181695444,0.09096349,46774.0,46771.0,0.14033567]
[1641181695842,0.09096349,46774.0,46771.0,0.15333567]
[1641181696141,0.26796349,46776.0,46771.0,0.15333567]
[1641181696851,0.09096349,46775.0,46771.0,0.15333567]
[1641181697042,0.09096349,46775.0,46771.0,0.14033567]
[1641181697843,0.26796349,46775.0,46771.0,0.24033567]
[1641181699043,1.48844218,46774.0,46771.0,0.24033567]
[1641181699243,1.48844218,46774.0,46771.0,0.14033567]
[1641181699843,1.57447869,46774.0,46772.0,0.322593]
[1641181700044,1.57447869,46774.0,46771.0,0.27033567]
[1641181700945,0.09096349,46773.0,46771.0,0.27033567]
[1641181701143,0.09096349,46773.0,46771.0,0.14033567]
[1641181701846,0.26596349,46773.0,46771.0,0.29033567]
[1641181703046,0.09096349,46772.0,46771.0,0.29033567]
[1641181703244,0.09096349,46772.0,46771.0,0.14033567]
[1641181703846,0.26596349,46772.0,46771.0,0.29733567]
[1641181704646,0.175,46772.0,46771.0,0.29733567]
[1641181705145,0.175,46772.0,46771.0,0.14033567]
[1641181705346,0.09096349,46772.0,46771.0,0.14033567]
[1641181705945,0.26696349,46772.0,46771.0,0.29833567]
[1641181706145,0.176,46772.0,46771.0,0.29833567]
[1641181706749,0.26696349,46772.0,46771.0,0.29833567]
[1641181707847,0.43896349,46772.0,46771.0,0.43833567]
[1641181709147,0.26296349,46772.0,46771.0,0.14033567]
[1641181709348,0.09096349,46772.0,46771.0,0.14033567]
[1641181709853,0.27896349,46772.0,46771.0,0.24433567]
[1641181710350,0.188,46772.0,46771.0,0.24433567]
[1641181711152,0.09096349,46772.0,46771.0,0.14033567]
[1641181711855,0.27996349,46772.0,46771.0,0.22133567]
[1641181712153,0.189,46772.0,46771.0,0.22133567]
[1641181712853,0.27996349,46772.0,46771.0,0.22133567]
[1641181713156,0.09096349,46772.0,46771.0,0.14033567]
[1641181713866,0.27996349,46772.0,46771.0,0.22033567]
[1641181714265,0.189,46772.0,46771.0,0.22033567]
[1641181714967,0.27996349,46772.0,46771.0,0.22033567]
[1641181715169,0.09096349,46772.0,46771.0,0.14033567]
[1641181715869,0.28396349,46772.0,46771.0,0.14033567]
[1641181716571,0.36255349,46772.0,46764.0,0.36340745]
[1641181716769,0.18,46768.0,46764.0,0.36340745]
[1641181716968,0.20139131,46765.0,46764.0,0.36340745]
[1641181717569,0.20139131,46765.0,46763.0,0.36340745]
[1641181717969,0.38539131,46765.0,46763.0,0.36340745]
[1641181718468,0.20539131,46765.0,46763.0,0.36340745]
[1641181718969,0.09096349,46764.0,46763.0,0.36340745]
[1641181719171,0.09096349,46764.0,46758.0,0.14033567]
[1641181719569,0.27096349,46764.0,46758.0,0.14033567]
[1641181719969,0.45896349,46764.0,46758.0,0.14033567]
[1641181721372,0.09096349,46763.0,46758.0,0.14033567]
[1641181721572,0.09096349,46763.0,46751.0,0.42779336]
[1641181721773,0.05727238,46763.0,46751.0,0.42779336]
[1641181721972,0.25127238,46763.0,46751.0,0.42779336]
[1641181722172,0.25127238,46763.0,46755.0,0.14033567]
[1641181722875,0.194,46763.0,46755.0,0.14033567]
[1641181723172,0.18,46764.0,46755.0,0.14033567]
[1641181723675,0.81307089,46757.0,46755.0,0.14033567]
[1641181725175,0.81307089,46756.0,46755.0,0.14033567]
[1641181725877,0.98707089,46756.0,46755.0,0.14033567]
[1641181727176,0.81307089,46756.0,46755.0,0.14033567]
[1641181727979,1.00607089,46756.0,46755.0,0.14033567]
[1641181728578,0.193,46756.0,46755.0,0.14033567]
[1641181729178,0.06864,46761.0,46750.0,0.14033567]
[1641181729377,0.02139419,46759.0,46750.0,0.14033567]
[1641181729980,0.21739419,46759.0,46750.0,0.14033567]
[1641181730179,0.35772986,46759.0,46750.0,0.14033567]
[1641181730381,0.34883784,46751.0,46750.0,0.14033567]
[1641181732079,0.52383784,46751.0,46750.0,0.14033567]
[1641181733080,1.39387597,46763.0,46751.0,0.41680381]
[1641181733281,1.39387597,46763.0,46758.0,0.37995656]
[1641181733679,1.39387597,46763.0,46759.0,0.005932]
[1641181734080,0.14033567,46766.0,46759.0,0.005932]
[1641181735079,1.39387597,46768.0,46759.0,0.005932]
[1641181735479,1.39387597,46769.0,46759.0,0.005932]
[1641181735882,1.39387597,46769.0,46759.0,0.02731813]
[1641181736079,1.39387597,46769.0,46764.0,0.14033567]
[1641181736380,1.53421164,46770.0,46764.0,0.14033567]
[1641181737180,0.09099787,46769.0,46764.0,0.14033567]
[1641181737980,0.23399787,46769.0,46764.0,0.32933567]
[1641181738983,0.09099787,46768.0,46764.0,0.32933567]
[1641181739985,0.23499787,46768.0,46764.0,0.51833567]
[1641181740990,0.09099787,46767.0,46764.0,0.51833567]
[1641181741187,0.09099787,46767.0,46764.0,0.14033567]
[1641181741988,0.26199787,46767.0,46764.0,0.32333567]
[1641181742386,0.171,46767.0,46764.0,0.32333567]
[1641181743287,1.39387597,46765.0,46764.0,0.14033567]
[1641181743987,1.39387597,46765.0,46764.0,0.32933567]
[1641181745189,1.39387597,46765.0,46764.0,0.14033567]
[1641181745693,1.39387597,46765.0,46759.0,0.18]
[1641181746094,1.39387597,46765.0,46764.0,0.196]
[1641181746293,1.39387597,46765.0,46764.0,0.33633567]
[1641181746994,1.39387597,46766.0,46764.0,0.33633567]
[1641181747294,1.39387597,46766.0,46764.0,0.14033567]
[1641181747695,1.39387597,46767.0,46764.0,0.14033567]
[1641181748094,1.39387597,46767.0,46764.0,0.33433567]
[1641181749194,1.39387597,46767.0,46764.0,0.14033567]
[1641181749994,1.39387597,46767.0,46764.0,0.33433567]
[1641181750799,1.39387597,46768.0,46764.0,0.33433567]
[1641181751401,1.39387597,46768.0,46764.0,0.14033567]
[1641181752100,1.39387597,46768.0,46764.0,0.33333567]
[1641181753503,1.39387597,46767.0,46764.0,0.33333567]
[1641181754101,1.39387597,46767.0,46764.0,0.52733567]
[1641181755320,1.39387597,46767.0,46764.0,0.14033567]
[1641181756123,1.39387597,46767.0,46764.0,0.33033567]
[1641181756525,1.39387597,46767.0,46764.0,0.19]
[1641181758026,1.56687597,46767.0,46764.0,0.374]
[1641181759328,0.09099787,46766.0,46764.0,0.184]
[1641181759528,0.09099787,46766.0,46759.0,0.24227]
[1641181760031,0.09099787,46766.0,46759.0,0.43327]
[1641181760232,0.09099787,46766.0,46760.0,0.321632]
[1641181761131,1.39387597,46767.0,46760.0,0.321632]
[1641181762031,1.54287597,46767.0,46760.0,0.510632]
[1641181762932,0.09099787,46766.0,46760.0,0.510632]
[1641181763331,0.09099787,46766.0,46760.0,0.321632]
[1641181764133,0.09099787,46766.0,46760.0,0.514632]
[1641181764336,0.09099787,46766.0,46760.0,0.91414095]
[1641181764536,1.39387597,46765.0,46760.0,1.27793127]
[1641181765335,1.39387597,46765.0,46760.0,1.08493127]
[1641181765535,1.39387597,46765.0,46761.0,0.36379032]
[1641181766036,1.39387597,46765.0,46761.0,0.55779032]
[1641181766437,1.39387597,46765.0,46762.0,0.4276896]
[1641181766637,1.39387597,46765.0,46762.0,0.7495236]
[1641181767738,1.39387597,46766.0,46762.0,1.11331392]
[1641181768137,1.39387597,46766.0,46762.0,1.30831392]
[1641181769441,1.39387597,46766.0,46762.0,1.11331392]
[1641181770040,1.39387597,46766.0,46762.0,1.30731392]
[1641181770240,1.39387597,46766.0,46762.0,1.31710792]
[1641181770542,1.39387597,46766.0,46762.0,0.9533176]
[1641181771541,1.39387597,46766.0,46762.0,0.7593176]
[1641181772043,1.39387597,46766.0,46762.0,0.9533176]
[1641181772441,1.39387597,46766.0,46762.0,1.31710792]
[1641181773242,1.39387597,46766.0,46762.0,0.9533176]
[1641181773443,1.39387597,46766.0,46762.0,0.7593176]
[1641181774144,1.39387597,46766.0,46762.0,1.31710792]
[1641181774944,1.39387597,46766.0,46762.0,0.9533176]
[1641181775344,1.39387597,46766.0,46762.0,0.7593176]
[1641181775947,1.39387597,46766.0,46762.0,1.12310792]
[1641181776146,1.39387597,46766.0,46762.0,1.31710792]
[1641181776847,1.39387597,46766.0,46762.0,0.9533176]
[1641181777347,1.39387597,46766.0,46762.0,0.7593176]
[1641181778046,1.39387597,46766.0,46762.0,0.9533176]
[1641181779449,1.39387597,46766.0,46762.0,0.7593176]
[1641181779752,1.48487384,46769.0,46762.0,0.7593176]
[1641181780049,0.09099787,46769.0,46762.0,0.9533176]
[1641181781550,0.09099787,46769.0,46762.0,0.7593176]
[1641181782153,0.09099787,46769.0,46762.0,0.9513176]
[1641181783352,0.09099787,46769.0,46762.0,0.7593176]
[1641181784052,0.09099787,46769.0,46762.0,0.9523176]
[1641181786059,0.09099787,46769.0,46762.0,1.1453176]
[1641181786256,0.09099787,46769.0,46763.0,0.12130839]
[1641181786455,0.09099787,46769.0,46762.0,1.1453176]
[1641181786756,0.09099787,46769.0,46764.0,0.317939]
[1641181786955,0.09099787,46769.0,46763.0,0.32223]
[1641181788055,0.09099787,46769.0,46763.0,0.192]
[1641181788056,0.18,46765.0,46763.0,0.192]
[1641181788455,0.18,46765.0,46763.0,0.55579032]
[1641181789256,0.09099787,46764.0,46763.0,0.192]
[1641181790159,0.23199787,46764.0,46763.0,0.181]
[1641181791558,0.09099787,46764.0,46760.0,0.14033567]
[1641181792159,1.40198503,46762.0,46760.0,0.32433567]
[1641181793360,1.40198503,46762.0,46760.0,0.14033567]
[1641181794063,1.53998503,46762.0,46760.0,0.32633567]
[1641181794765,0.18,46761.0,46758.0,0.36379032]
[1641181794967,0.20139315,46761.0,46750.0,0.14033567]
[1641181795169,0.18,46757.0,46750.0,0.14033567]
[1641181795368,1.296,46757.0,46750.0,0.14033567]
[1641181796164,0.18,46754.0,46750.0,0.14033567]
[1641181796585,0.18,46754.0,46747.0,1.2134272]
[1641181796786,0.18,46754.0,46745.0,0.14033567]
[1641181796985,1.39886486,46751.0,46745.0,0.14033567]
[1641181797286,1.45661486,46751.0,46745.0,0.14033567]
[1641181797986,1.39886486,46750.0,46745.0,0.14033567]
[1641181798887,0.09099787,46749.0,46745.0,0.14033567]
[1641181800193,0.26899787,46749.0,46745.0,0.20233567]
[1641181801192,0.09099787,46748.0,46745.0,0.20233567]
[1641181801392,0.09099787,46748.0,46745.0,0.14033567]
[1641181802192,0.28699787,46748.0,46745.0,0.14033567]
[1641181802392,0.28699787,46748.0,46746.0,0.12134428]
[1641181803395,0.09099787,46747.0,46746.0,0.12134428]
[1641181804198,0.168,46747.0,46746.0,0.26334428]
[1641181805499,0.81447258,46754.0,46746.0,0.12134428]
[1641181805698,0.81447258,46754.0,46751.0,0.18]
[1641181805898,0.38670348,46754.0,46751.0,0.18]
[1641181806098,0.57170348,46754.0,46752.0,0.317168]
[1641181806698,0.57170348,46754.0,46753.0,0.26166293]
[1641181806899,0.185,46754.0,46753.0,0.26166293]
[1641181807500,1.8379913,46765.0,46753.0,0.26166293]
[1641181808200,0.186,46760.0,46754.0,0.12132726]
[1641181808400,0.121,46760.0,46759.0,0.18]
[1641181808601,1.9722,46769.0,46759.0,0.38108567]
[1641181808801,1.39886486,46770.0,46759.0,0.70117867]
[1641181809003,1.39886486,46770.0,46760.0,0.009794]
[1641181809401,1.39886486,46770.0,46761.0,0.322099]
[1641181810000,0.16172233,46775.0,46761.0,0.322099]
[1641181810001,1.39886486,46773.0,46761.0,0.322099]
[1641181810202,1.39886486,46773.0,46761.0,0.514099]
[1641181810607,1.39886486,46773.0,46769.0,0.14033567]
[1641181810801,0.0909836,46773.0,46769.0,0.22604567]
[1641181812007,0.0909836,46774.0,46769.0,0.22604567]
[1641181812204,0.0909836,46774.0,46769.0,0.41704567]
[1641181813408,0.0909836,46774.0,46769.0,0.22604567]
[1641181814208,0.0909836,46774.0,46770.0,0.321922]
[1641181815210,0.81833206,46772.0,46771.0,0.19294816]
[1641181815609,0.81833206,46772.0,46771.0,0.19305816]
[1641181816110,0.0909836,46774.0,46771.0,0.19305816]
[1641181816111,0.81833206,46774.0,46771.0,0.38605816]
[1641181818009,0.61931267,46774.0,46771.0,1.01449046]
[1641181818210,0.61931267,46774.0,46771.0,1.20749046]
[1641181818612,0.14033567,46780.0,46771.0,1.20749046]
[1641181819415,0.14033567,46780.0,46771.0,0.82149046]
[1641181819813,0.09098555,46779.0,46771.0,0.82149046]
[1641181820215,0.09098555,46779.0,46771.0,1.01449046]
[1641181821715,0.35112657,46774.0,46771.0,0.82149046]
[1641181822116,0.35112657,46774.0,46771.0,1.01749046]
[1641181823521,0.35112657,46774.0,46771.0,0.82149046]
[1641181823721,0.35112657,46774.0,46772.0,0.51312165]
[1641181824021,0.35112657,46774.0,46773.0,0.322085]
[1641181824421,1.40446485,46775.0,46773.0,0.322085]
[1641181824823,1.40446485,46775.0,46774.0,0.14033567]
[1641181825321,1.40446485,46775.0,46774.0,0.46283567]
[1641181825521,0.9263216,46775.0,46774.0,0.46283567]
[1641181825720,0.09098555,46783.0,46775.0,0.009794]
[1641181825921,0.09098555,46783.0,46776.0,0.0213784]
[1641181826125,0.09098555,46783.0,46777.0,0.18]
[1641181826422,0.14033567,46789.0,46778.0,0.321965]
[1641181828024,0.14033567,46789.0,46778.0,0.393215]
[1641181828221,0.14033567,46789.0,46778.0,0.588215]
[1641181828724,0.14033567,46789.0,46782.0,0.14033567]
[1641181829123,0.14033567,46789.0,46783.0,0.320656]
[1641181829525,0.35077192,46792.0,46784.0,0.009794]
[1641181829823,0.35077192,46792.0,46785.0,0.320448]
[1641181830239,0.37077192,46793.0,46785.0,0.320448]
[1641181830839,0.37077192,46793.0,46791.0,0.14033567]
[1641181831038,0.37077192,46793.0,46791.0,0.20757567]
[1641181831839,0.02,46793.0,46791.0,0.20757567]
[1641181832239,0.02,46793.0,46791.0,0.33633567]
[1641181833439,0.02,46793.0,46791.0,0.14033567]
[1641181834140,0.02,46793.0,46791.0,0.32833567]
[1641181834840,0.02,46793.0,46791.0,0.15293393]
[1641181835641,0.02,46793.0,46784.0,0.009794]
[1641181836140,0.184,46793.0,46784.0,0.196794]
[1641181836340,0.184,46793.0,46785.0,0.320219]
[1641181837040,0.184,46793.0,46784.0,0.196794]
[1641181837041,0.184,46793.0,46784.0,0.187]
[1641181837641,0.02,46793.0,46782.0,0.52400812]
[1641181838142,0.184,46793.0,46782.0,0.71100812]
[1641181838341,0.184,46793.0,46783.0,0.320547]
[1641181838943,0.184,46793.0,46784.0,0.009794]
[1641181839146,0.184,46793.0,46784.0,0.078024]
[1641181839344,0.184,46793.0,46785.0,0.318708]
[1641181839544,0.02,46793.0,46785.0,0.318708]
[1641181840143,0.02,46793.0,46785.0,0.510708]
[1641181841251,0.02,46793.0,46788.0,0.8]
[1641181841449,0.02,46793.0,46789.0,0.009794]
[1641181841651,0.02,46793.0,46789.0,0.32795]
[1641181842250,0.02,46793.0,46789.0,0.52195]
[1641181843652,0.02,46793.0,46789.0,0.32795]
[1641181843852,0.02,46793.0,46792.0,0.12625309]
[1641181844155,0.02,46793.0,46792.0,0.44546109]
[1641181846454,0.02,46793.0,46792.0,0.63946109]
[1641181847555,0.02,46793.0,46792.0,0.44546109]
[1641181847957,0.14033567,46797.0,46795.0,0.39872564]
[1641181848157,0.14033567,46797.0,46792.0,0.44546109]
[1641181848356,0.14033567,46797.0,46792.0,0.32125309]
[1641181848957,0.14033567,46797.0,46793.0,0.320031]
[1641181850157,0.14033567,46797.0,46791.0,0.322212]
[1641181850358,0.14033567,46797.0,46793.0,0.19]
[1641181850560,0.09095452,46796.0,46793.0,0.19]
[1641181851163,0.09095452,46796.0,46794.0,0.321962]
[1641181851560,0.09095452,46796.0,46795.0,0.009794]
[1641181851862,0.09095452,46796.0,46795.0,0.010328]
[1641181852258,0.09095452,46796.0,46795.0,0.203328]
[1641181852861,0.09095452,46796.0,46795.0,0.193534]
[1641181853361,0.09095452,46796.0,46795.0,0.50705415]
[1641181853563,0.09095452,46796.0,46795.0,0.31405415]
[1641181853862,0.09095452,46796.0,46795.0,0.31352015]
[1641181854263,0.09095452,46796.0,46795.0,0.82683215]
[1641181855665,1.40440542,46800.0,46798.0,0.09345455]
[1641181856066,1.40440542,46800.0,46799.0,0.317421]
[1641181856267,1.40440542,46800.0,46798.0,0.185]
[1641181857566,1.40440542,46800.0,46799.0,0.318778]
[1641181857766,1.40440542,46800.0,46799.0,0.398538]
[1641181857967,1.40440542,46800.0,46799.0,0.07976]
[1641181858468,1.33940542,46800.0,46799.0,0.587659]
[1641181859167,0.14033567,46802.0,46799.0,0.587659]
[1641181859567,0.14033567,46802.0,46799.0,0.401659]
[1641181859968,0.14033567,46802.0,46800.0,0.009794]
[1641181860370,0.14033567,46802.0,46801.0,0.32136]
[1641181861069,0.0319,46804.0,46801.0,0.32136]
[1641181861270,0.14033567,46806.0,46801.0,0.32136]
[1641181862272,0.14033567,46806.0,46801.0,0.50636]
[1641181863773,0.14033567,46806.0,46801.0,0.185]
[1641181864074,1.55623159,46806.0,46801.0,0.185]
[1641181864673,0.14033567,46806.0,46801.0,0.185]
[1641181865573,0.14033567,46806.0,46800.0,0.009794]
[1641181866376,0.14033567,46806.0,46800.0,0.194794]
[1641181867776,0.14033567,46806.0,46800.0,0.009794]
[1641181868276,0.14033567,46806.0,46800.0,0.194794]
[1641181869479,0.14033567,46806.0,46800.0,0.185]
[1641181870081,0.18,46803.0,46800.0,0.185]
[1641181870278,0.18,46803.0,46800.0,0.368]
[1641181870679,1.116,46802.0,46787.0,0.36314432]
[1641181870980,0.18,46794.0,46787.0,0.36314432]
[1641181871180,0.08826,46794.0,46786.0,0.02137368]
[1641181871397,0.26826,46794.0,46786.0,0.02137368]
[1641181871679,0.08826,46794.0,46786.0,0.02137368]
[1641181872280,0.27526,46794.0,46786.0,0.02137368]
[1641181872881,0.09094394,46793.0,46786.0,0.02137368]
[1641181873883,0.09094394,46793.0,46786.0,0.384518]
[1641181874285,0.27894394,46793.0,46786.0,0.384518]
[1641181874684,0.188,46793.0,46786.0,0.384518]
[1641181875187,0.09094394,46792.0,46786.0,0.384518]
[1641181876186,0.09094394,46792.0,46786.0,0.02137368]
[1641181876385,0.27794394,46792.0,46786.0,0.02137368]
[1641181876785,0.187,46792.0,46786.0,0.02137368]
[1641181877588,0.09094394,46794.0,46786.0,0.02137368]
[1641181877790,0.09094394,46791.0,46786.0,0.02137368]
[1641181878290,0.27794394,46791.0,46786.0,0.02137368]
[1641181878691,0.187,46791.0,46786.0,0.02137368]
[1641181879407,0.09094394,46790.0,46786.0,0.384518]
[1641181880006,0.09094394,46790.0,46786.0,0.36314432]
[1641181880207,0.09094394,46790.0,46785.0,0.79928327]
[1641181880408,0.27894394,46790.0,46785.0,0.79928327]
[1641181881707,0.09094394,46790.0,46785.0,0.79928327]
[1641181882507,0.27894394,46790.0,46785.0,0.79928327]
[1641181882909,0.188,46790.0,46785.0,0.79928327]
[1641181883507,0.27894394,46790.0,46785.0,0.79928327]
[1641181883707,0.09094394,46790.0,46785.0,0.79928327]
[1641181884508,0.27894394,46790.0,46785.0,0.79928327]
[1641181885512,1.60177833,46790.0,46785.0,0.43613895]
[1641181885709,1.41377833,46790.0,46789.0,0.22752567]
[1641181886416,0.28094394,46790.0,46789.0,0.65496824]
[1641181886609,0.28094394,46790.0,46789.0,0.97725324]
[1641181887412,1.41377833,46794.0,46793.0,0.14646614]
[1641181887911,1.41377833,46794.0,46789.0,0.23731967]
[1641181888512,1.59077833,46794.0,46793.0,1.00136976]